fUST/lending_fUST_20240918
["ID","MTS","AMOUNT","RATE_DAILY","PERIOD"]
[338411290,1726612239677,-176.08185419,0.00024099,7]
[338411291,1726612239688,-151.0,0.00024099,7]
[338411292,1726612239698,-151.0,0.00024099,7]
[338411293,1726612239709,-197.650508,0.00024099,7]
[338411294,1726612239719,-151.0,0.00024099,7]
[338411295,1726612239730,-151.0,0.00024099,7]
[338411296,1726612239742,-170.952072,0.00024099,7]
[338411297,1726612239760,-170.952072,0.00024099,7]
[338411298,1726612239769,-151.0,0.00024099,7]
[338411299,1726612239778,-151.0,0.00024099,7]
[338411300,1726612239787,-170.952072,0.00024099,7]
[338411301,1726612239796,-170.952072,0.00024099,7]
[338411302,1726612239806,-179.043057,0.00024099,7]
[338411303,1726612239815,-151.0,0.00024099,7]
[338411304,1726612239824,-179.043057,0.00024099,7]
[338411305,1726612239832,-151.0,0.00024099,7]
[338411306,1726612239842,-179.043057,0.00024099,7]
[338411307,1726612239851,-179.043057,0.00024099,7]
[338411308,1726612239860,-151.0,0.00024099,7]
[338411309,1726612239869,-151.0,0.00024099,7]
[338411310,1726612239879,-150.112233,0.000241,4]
[338411311,1726612239889,-12787.74,0.00024109,2]
[338411312,1726612239901,-151.0,0.00024109,7]
[338411313,1726612239910,-298.081485,0.00024109,7]
[338411314,1726612239921,-151.0,0.00024109,7]
[338411315,1726612239931,-153.0,0.0002411,2]
[338411316,1726612239942,-158.0,0.00024164,2]
[338411317,1726612239953,-302.30477158,0.0002424,2]
[338411318,1726612239964,-302.30477158,0.0002424,2]
[338411319,1726612239976,-150.112233,0.000243,2]
[338411320,1726612239986,-12787.74,0.00024383,2]
[338411321,1726612239998,-302.30477158,0.0002448,2]
[338411322,1726612240008,-302.30477158,0.0002448,2]
[338411323,1726612240019,-166.666666,0.00024482,2]
[338411324,1726612240030,-1038.38251869,0.00024558,2]
[338411325,1726612240041,-6354.21706966,0.00024577,2]
[338411326,1726612240052,-150.112233,0.000246,4]
[338411327,1726612240062,-160.0,0.00024606,5]
[338411328,1726612240073,-199.07228689,0.00024656,2]
[338411329,1726612240087,-500.0,0.00024656,2]
[338411330,1726612240096,-500.0,0.00024656,2]
[338411331,1726612240107,-354.70901003,0.00024656,2]
[338411332,1726612240118,-500.0,0.00024656,2]
[338411333,1726612240128,-500.0,0.00024656,2]
[338411334,1726612240138,-459.13260734,0.00024656,2]
[338411335,1726612240148,-602.04951304,0.00024656,2]
[338411336,1726612240159,-254.06463255,0.00024656,2]
[338411337,1726612240170,-500.0,0.00024656,2]
[338411338,1726612240181,-500.0,0.00024656,2]
[338411339,1726612240192,-500.0,0.00024656,2]
[338411340,1726612240202,-500.0,0.00024656,2]
[338411341,1726612240213,-500.0,0.00024656,2]
[338411342,1726612240223,-500.0,0.00024656,2]
[338411343,1726612240233,-500.0,0.00024656,2]
[338411344,1726612240245,-500.0,0.00024656,2]
[338411345,1726612240258,-151.0,0.00024657,7]
[338411346,1726612240269,-151.0,0.00024657,7]
[338411347,1726612240279,-170.952072,0.00024657,7]
[338411348,1726612240290,-170.952072,0.00024657,7]
[338411349,1726612240300,-179.043057,0.00024657,7]
[338411350,1726612240309,-151.0,0.00024657,7]
[338411351,1726612240319,-179.043057,0.00024657,7]
[338411352,1726612240331,-164.035834,0.00024657,7]
[338411353,1726612240341,-151.0,0.00024657,7]
[338411354,1726612240351,-164.035834,0.00024657,7]
[338411355,1726612240363,-382.947343,0.00024657,7]
[338411356,1726612240373,-382.947343,0.00024657,7]
[338411357,1726612240383,-151.0,0.00024657,7]
[338411358,1726612240395,-729.286509,0.00024657,7]
[338411359,1726612240405,-729.286509,0.00024657,7]
[338411360,1726612240417,-12787.74,0.00024657,2]
[338411361,1726612240426,-151.0,0.00024657,7]
[338411362,1726612240438,-253.220048,0.00024657,7]
[338411363,1726612240448,-151.0,0.00024657,7]
[338411364,1726612240459,-180.315813,0.00024657,7]
[338411365,1726612240471,-180.315813,0.00024657,7]
[338411366,1726612240482,-431.07389,0.00024657,7]
[338411367,1726612240495,-431.07389,0.00024657,7]
[338411368,1726612240507,-380.0,0.00024658,2]
[338411369,1726612240517,-200.0,0.00024658,15]
[338411370,1726612240527,-3074.352867,0.00024658,7]
[338411371,1726612240539,-3074.352867,0.00024658,7]
[338411372,1726612240549,-3074.352867,0.00024658,7]
[338411373,1726612240560,-3074.352867,0.00024658,7]
[338411374,1726612240571,-3074.352867,0.00024658,7]
[338411375,1726612240582,-3074.352867,0.00024658,7]
[338411376,1726612240593,-3074.352867,0.00024658,7]
[338411377,1726612240603,-3074.352867,0.00024658,7]
[338411378,1726612240614,-3074.352867,0.00024658,7]
[338411379,1726612240626,-3074.352867,0.00024658,7]
[338411380,1726612240637,-173.401294,0.00024658,7]
[338411381,1726612240647,-420.0,0.00024679,2]
[338411382,1726612240659,-302.30477158,0.0002472,2]
[338411383,1726612240671,-302.30477158,0.0002472,2]
[338411384,1726612240682,-6354.21706966,0.00024763,2]
[338411385,1726612240691,-729.286509,0.0002478,7]
[338411386,1726612240701,-729.286509,0.0002478,7]
[338411387,1726612240711,-151.0,0.0002478,7]
[338411388,1726612240723,-151.0,0.0002478,7]
[338411389,1726612240734,-180.315813,0.0002478,7]
[338411390,1726612240746,-180.315813,0.0002478,7]
[338411391,1726612240754,-3074.352867,0.0002478,7]
[338411392,1726612240763,-3074.352867,0.0002478,7]
[338411393,1726612240773,-431.07389,0.0002478,7]
[338411394,1726612240782,-431.07389,0.0002478,7]
[338411395,1726612240792,-11780.31644384,0.0002478,3]
[338411396,1726612240801,-150.0,0.00024792,2]
[338411397,1726612240811,-150.112233,0.000248,5]
[338411398,1726612240821,-179.03010963,0.00024829,8]
[338411399,1726612240830,-151.0,0.0002488,7]
[338411400,1726612240840,-151.0,0.0002488,7]
[338411401,1726612240849,-151.0,0.0002488,7]
[338411402,1726612240859,-151.0,0.0002488,7]
[338411403,1726612240868,-170.952072,0.0002488,7]
[338411404,1726612240878,-170.952072,0.0002488,7]
[338411405,1726612240887,-179.043057,0.0002488,7]
[338411406,1726612240897,-151.0,0.0002488,7]
[338411407,1726612240906,-179.043057,0.0002488,7]
[338411408,1726612240916,-164.035834,0.0002488,7]
[338411409,1726612240926,-151.0,0.0002488,7]
[338411410,1726612240935,-164.035834,0.0002488,7]
[338411411,1726612240945,-382.947343,0.0002488,7]
[338411412,1726612240954,-382.947343,0.0002488,7]
[338411413,1726612240964,-225.338036,0.0002488,7]
[338411414,1726612240973,-4795.74,0.00024889,2]
[338411415,1726612240983,-151.0,0.0002489,7]
[338411416,1726612240992,-151.0,0.0002489,7]
[338411417,1726612241002,-151.0,0.0002489,7]
[338411418,1726612241012,-170.952072,0.0002489,7]
[338411419,1726612241021,-170.952072,0.0002489,7]
[338411420,1726612241030,-179.043057,0.0002489,7]
[338411421,1726612241040,-151.0,0.0002489,7]
[338411422,1726612241049,-179.043057,0.0002489,7]
[338411423,1726612241058,-151.0,0.0002489,7]
[338411424,1726612241068,-409.33,0.000249,31]
[338411425,1726612241079,-409.33,0.000249,31]
[338411426,1726612241088,-409.33,0.000249,31]
[338411427,1726612241098,-409.33,0.000249,31]
[338411428,1726612241109,-409.33,0.000249,31]
[338411429,1726612241120,-409.33,0.000249,31]
[338411430,1726612241131,-409.33,0.000249,31]
[338411431,1726612241142,-409.33,0.000249,31]
[338411432,1726612241152,-409.33,0.000249,31]
[338411433,1726612241163,-409.33,0.000249,31]
[338411434,1726612241173,-409.33,0.000249,31]
[338411435,1726612241187,-409.33,0.000249,31]
[338411436,1726612241196,-409.33,0.000249,31]
[338411437,1726612241210,-409.33,0.000249,31]
[338411438,1726612241220,-409.33,0.000249,31]
[338411439,1726612241232,-409.33,0.000249,31]
[338411440,1726612241242,-729.286509,0.00024931,7]
[338411441,1726612241255,-729.286509,0.00024931,7]
[338411442,1726612241265,-12787.74,0.00024931,2]
[338411443,1726612241274,-457.0,0.00024932,2]
[338411444,1726612241284,-301.76195586,0.0002496,2]
[338411445,1726612241294,-302.30477158,0.0002496,2]
[338411446,1726612241304,-151.0,0.00024969,7]
[338411447,1726612241313,-151.0,0.00024969,7]
[338411448,1726612241322,-151.0,0.00024969,7]
[338411449,1726612241332,-170.952072,0.00024969,7]
[338411450,1726612241342,-170.952072,0.00024969,7]
[338411451,1726612241353,-179.043057,0.00024969,7]
[338411452,1726612241362,-151.0,0.00024969,7]
[338411453,1726612241372,-179.043057,0.00024969,7]
[338411454,1726612241382,-151.0,0.00024969,7]
[338411455,1726612241394,-151.0,0.00024969,7]
[338411456,1726612241404,-151.0,0.00024969,7]
[338411457,1726612241414,-180.315813,0.00024969,7]
[338411458,1726612241425,-180.315813,0.00024969,7]
[338411459,1726612241434,-3074.352867,0.00024969,7]
[338411460,1726612241443,-3074.352867,0.00024969,7]
[338411461,1726612241455,-431.07389,0.00024969,7]
[338411462,1726612241466,-431.07389,0.00024969,7]
[338411463,1726612241477,-151.0,0.0002497,7]
[338411464,1726612241488,-151.0,0.0002497,7]
[338411465,1726612241500,-151.0,0.0002497,7]
[338411466,1726612241512,-170.952072,0.0002497,7]
[338411467,1726612241523,-170.952072,0.0002497,7]
[338411468,1726612241535,-179.043057,0.0002497,7]
[338411469,1726612241546,-151.0,0.0002497,7]
[338411470,1726612241557,-179.043057,0.0002497,7]
[338411471,1726612241568,-151.0,0.0002497,7]
[338411472,1726612241578,-500.0,0.00024973,2]
[338411473,1726612241591,-500.0,0.00024973,2]
[338411474,1726612241603,-500.0,0.00024973,2]
[338411475,1726612241615,-151.0,0.00024979,7]
[338411476,1726612241625,-151.0,0.00024979,7]
[338411477,1726612241637,-151.0,0.00024979,7]
[338411478,1726612241648,-170.952072,0.00024979,7]
[338411479,1726612241659,-170.95207,0.00024979,7]
[338411480,1726612241670,-179.043057,0.00024979,7]
[338411481,1726612241682,-158.55896,0.00024979,7]
[338411482,1726612241693,-179.04306,0.00024979,7]
[338411483,1726612241703,-164.035834,0.00024979,7]
[338411484,1726612241713,-151.0,0.00024979,7]
[338411485,1726612241725,-164.035834,0.00024979,7]
[338411486,1726612241736,-382.947343,0.00024979,7]
[338411487,1726612241872,-382.947343,0.00024979,7]
[338411488,1726612241908,-151.0,0.0002498,7]
[338411489,1726612241920,-151.0,0.0002498,7]
[338411490,1726612241931,-306.0,0.00024986,2]
[338411491,1726612241943,-208.6901718,0.00024986,2]
[338411492,1726612241955,-153.0,0.00024986,2]
[338411493,1726612241965,-153.0,0.00024986,2]
[338411494,1726612241977,-153.0,0.00024986,2]
[338411495,1726612241987,-153.0,0.00024986,2]
[338411496,1726612241997,-153.0,0.00024986,2]
[338411497,1726612242007,-153.0,0.00024986,2]
[338411498,1726612242017,-153.0,0.00024986,2]
[338411499,1726612242027,-153.0,0.00024986,2]
[338411500,1726612242039,-153.0,0.00024986,2]
[338411501,1726612242050,-153.0,0.00024986,2]
[338411502,1726612242062,-153.0,0.00024986,2]
[338411503,1726612242073,-153.0,0.00024986,2]
[338411504,1726612242086,-153.0,0.00024986,2]
[338411505,1726612242098,-153.0,0.00024986,2]
[338411506,1726612242108,-153.0,0.00024986,2]
[338411507,1726612242118,-434.4005391,0.00024986,2]
[338411508,1726612242127,-153.0,0.00024986,2]
[338411509,1726612242139,-153.0,0.00024986,2]
[338411510,1726612242151,-153.0,0.00024986,2]
[338411511,1726612242162,-153.0,0.00024986,2]
[338411512,1726612242173,-153.0,0.00024986,2]
[338411513,1726612242185,-153.0,0.00024986,2]
[338411514,1726612242195,-153.0,0.00024986,2]
[338411515,1726612242209,-153.0,0.00024986,2]
[338411516,1726612242218,-417.3803436,0.00024986,2]
[338411517,1726612242228,-168.77768085,0.00024988,2]
[338411518,1726612242239,-729.286509,0.00024989,7]
[338411519,1726612242250,-729.286513,0.00024989,7]
[338411520,1726612242260,-151.0,0.0002499,7]
[338411521,1726612242270,-151.0,0.0002499,7]
[338411522,1726612242279,-151.0,0.0002499,7]
[338411524,1726612242289,-160.0,0.00024999,2]
[338411525,1726612242300,-1000.0,0.00024999,2]
[338411526,1726612242310,-1441.22404876,0.00024999,3]
[338411527,1726612242321,-1629.36,0.00025,5]
[338411528,1726612242331,-1629.28,0.00025,5]
[338411529,1726612242341,-26980.20961086,0.00025,5]
[338411530,1726612242350,-5656.75790645,0.00025,5]
[338411531,1726612242359,-1000.5,0.00025,31]
[338411532,1726612242368,-1000.5,0.00025,31]
[338411533,1726612242378,-1018.9,0.00025,31]
[338411534,1726612242388,-1000.5,0.00025,31]
[338411535,1726612242398,-111481.22233241,0.00025,2]
[338411536,1726612242407,-75587.65031795,0.00025,2]
[338411537,1726612242416,-56541.71974398,0.00025,2]
[338411538,1726612242426,-10364.0,0.00025,2]
[338411539,1726612242436,-1000.0,0.00025,5]
[338411540,1726612242446,-1000.0,0.00025,25]
[338411541,1726612242456,-300.0,0.00025,2]
[338411542,1726612242466,-300.0,0.00025,2]
[338411543,1726612242476,-300.0,0.00025,2]
[338411544,1726612242488,-300.0,0.00025,2]
[338411545,1726612242500,-300.0,0.00025,2]
[338411546,1726612242510,-300.0,0.00025,2]
[338411547,1726612242521,-300.0,0.00025,2]
[338411548,1726612242532,-658.0,0.00025,2]
[338411549,1726612242543,-300.0,0.00025,2]
[338411550,1726612242555,-2331.32551684,0.00025,2]
[338411551,1726612242565,-344.24785866,0.00025,2]
[338411552,1726612242577,-300.0,0.00025,2]
[338411553,1726612242589,-300.0,0.00025,2]
[338411554,1726612242600,-300.0,0.00025,2]
[338411555,1726612242611,-300.0,0.00025,2]
[338411556,1726612242624,-243.5,0.00025,2]
[338411557,1726612242634,-243.5,0.00025,2]
[338411558,1726612242644,-300.0,0.00025,2]
[338411559,1726612242654,-300.0,0.00025,2]
[338411560,1726612242665,-300.0,0.00025,2]
[338411561,1726612242675,-2000.0,0.00025,2]
[338411562,1726612242687,-300.0,0.00025,2]
[338411563,1726612242697,-300.0,0.00025,2]
[338411564,1726612242708,-300.0,0.00025,2]
[338411565,1726612242718,-300.0,0.00025,2]
[338411566,1726612242728,-243.5,0.00025,2]
[338411567,1726612242738,-319.0,0.00025,2]
[338411568,1726612242748,-3419.28145704,0.00025,2]
[338411569,1726612242758,-587.29,0.00025,2]
[338411570,1726612242767,-361.69613686,0.00025,2]
[338411571,1726612242777,-467.5785942,0.00025,60]
[338411573,1726612242786,-155.0,0.00025,7]
[338411574,1726612242795,-200.0,0.00025,60]
[338411575,1726612242805,-300.0,0.00025,2]
[338411576,1726612242815,-300.0,0.00025,2]
[338411577,1726612242824,-300.0,0.00025,2]
[338411578,1726612242833,-10610.0,0.00025,14]
[338411579,1726612242842,-500.0,0.00025,2]
[338411580,1726612242851,-300.0,0.00025,2]
[338411581,1726612242860,-300.0,0.00025,2]
[338411582,1726612242870,-300.0,0.00025,2]
[338411583,1726612242879,-300.0,0.00025,2]
[338411584,1726612242889,-300.0,0.00025,2]
[338411585,1726612242898,-300.0,0.00025,2]
[338411586,1726612242907,-243.5,0.00025,2]
[338411587,1726612242916,-1188.84044932,0.00025,30]
[338411588,1726612242926,-1188.84044932,0.00025,120]
[338411589,1726612242936,-1188.84044932,0.00025,2]
[338411590,1726612242946,-500.0,0.00025,2]
[338411591,1726612242956,-200.0,0.00025,120]
[338411592,1726612242965,-1000.0,0.00025,2]
[338411593,1726612242975,-19706.89,0.00025,14]
[338411594,1726612242984,-49574.64,0.00025,14]
[338411595,1726612242994,-280920.08519263,0.00025,2]
[338411596,1726612243004,-190.35,0.00025,2]
[338411597,1726612243014,-300873.12,0.00025,14]
[338411598,1726612243025,-1033.18787126,0.00025,2]
[338411599,1726612243035,-164.41841908,0.00025,2]
[338411600,1726612243047,-202.02451548,0.00025,2]
[338411601,1726612243057,-5000.0,0.00025,2]
[338411602,1726612243067,-5000.0,0.00025,2]
[338411603,1726612243077,-5000.0,0.00025,2]
[338411604,1726612243089,-5000.0,0.00025,2]
[338411605,1726612243098,-5000.0,0.00025,2]
[338411606,1726612243108,-5000.0,0.00025,2]
[338411607,1726612243117,-5000.0,0.00025,2]
[338411608,1726612243128,-5000.0,0.00025,2]
[338411609,1726612243138,-5000.0,0.00025,2]
[338411610,1726612243147,-5000.0,0.00025,2]
[338411611,1726612243157,-5000.0,0.00025,2]
[338411612,1726612243166,-5000.0,0.00025,2]
[338411613,1726612243176,-5000.0,0.00025,2]
[338411614,1726612243185,-5000.0,0.00025,2]
[338411615,1726612243194,-5000.0,0.00025,2]
[338411616,1726612243203,-5000.0,0.00025,2]
[338411617,1726612243214,-572.0,0.00025,2]
[338411618,1726612243223,-3620.78,0.00025,14]
[338411619,1726612243233,-1507.13,0.00025,7]
[338411620,1726612243242,-261.0,0.00025,2]
[338411621,1726612243253,-164.0,0.00025,2]
[338411622,1726612243261,-13555.0,0.00025,22]
[338411623,1726612243271,-151.0,0.00025,7]
[338411624,1726612243280,-151.0,0.00025,7]
[338411625,1726612243289,-151.0,0.00025,7]
[338411626,1726612243298,-457.0,0.00025,2]
[338411627,1726612243307,-164.035834,0.00025,7]
[338411628,1726612243317,-164.035834,0.00025,7]
[338411629,1726612243326,-382.947343,0.00025,7]
[338411630,1726612243336,-382.947351,0.00025,7]
[338411631,1726612243345,-151.0,0.00025,7]
[338411632,1726612243354,-8362.57314334,0.00025,2]
[338411633,1726612243363,-1702.92775696,0.00025,2]
[338411634,1726612243372,-15113.20156748,0.00025,10]
[338411635,1726612243382,-12087.52129975,0.00025,10]
[338411636,1726612243391,-151.0,0.00025,7]
[338411637,1726612243400,-180.315813,0.00025,7]
[338411638,1726612243410,-180.31581,0.00025,7]
[338411639,1726612243419,-3074.352867,0.00025,7]
[338411640,1726612243429,-3074.352867,0.00025,7]
[338411641,1726612243439,-3074.352867,0.00025,7]
[338411642,1726612243448,-3074.352867,0.00025,7]
[338411643,1726612243457,-3074.352867,0.00025,7]
[338411644,1726612243467,-3074.352867,0.00025,7]
[338411645,1726612243476,-431.07389,0.00025,7]
[338411646,1726612243485,-431.07388,0.00025,7]
[338411647,1726612243496,-420.0,0.00025001,2]
[338411648,1726612243505,-314416.9464225,0.0002509,2]
[338411649,1726612243514,-500.0,0.00025095,60]
[338411650,1726612243523,-165.20308892,0.00025096,2]
[338411651,1726612243532,-154.80537998,0.000251,10]
[338411652,1726612243542,-473.83415027,0.000251,10]
[338411653,1726612243551,-234.03205927,0.000251,10]
[338411654,1726612243561,-500.0,0.000251,10]
[338411655,1726612243571,-700.0,0.000251,10]
[338411656,1726612243580,-234.71765112,0.000251,10]
[338411657,1726612243590,-500.0,0.000251,10]
[338411658,1726612243601,-500.0,0.000251,10]
[338411659,1726612243614,-500.0,0.000251,10]
[338411660,1726612243623,-500.0,0.000251,10]
[338411661,1726612243634,-500.0,0.000251,10]
[338411662,1726612243644,-500.0,0.000251,10]
[338411663,1726612243657,-500.0,0.000251,10]
[338411664,1726612243667,-500.0,0.000251,10]
[338411665,1726612243678,-500.0,0.000251,10]
[338411666,1726612243690,-500.0,0.000251,10]
[338411667,1726612243702,-500.0,0.000251,10]
[338411668,1726612243712,-500.0,0.000251,10]
[338411669,1726612243723,-181.888,0.000251,10]
[338411670,1726612243734,-500.0,0.000251,10]
[338411671,1726612243744,-500.0,0.000251,10]
[338411672,1726612243757,-500.0,0.000251,10]
[338411673,1726612243767,-500.0,0.000251,10]
[338411674,1726612243776,-320.0,0.000252,120]
[338411675,1726612243785,-453.45715737,0.000252,4]
[338411676,1726612243794,-12787.74,0.00025205,2]
[338411677,1726612243803,-572.0,0.00025205,2]
[338411678,1726612243813,-1000.0,0.00025232,2]
[338411679,1726612243822,-409.33,0.000253,31]
[338411680,1726612243831,-409.33,0.000253,31]
[338411681,1726612243841,-409.33,0.000253,31]
[338411682,1726612243850,-409.33,0.000253,31]
[338411683,1726612243859,-409.33,0.000253,31]
[338411684,1726612243868,-409.33,0.000253,31]
[338411685,1726612243878,-409.33,0.000253,31]
[338411686,1726612243887,-409.33,0.000253,31]
[338411687,1726612243897,-409.33,0.000253,31]
[338411688,1726612243907,-409.33,0.000253,31]
[338411689,1726612243916,-409.33,0.000253,31]
[338411690,1726612243926,-409.33,0.000253,31]
[338411691,1726612243936,-409.33,0.000253,31]
[338411692,1726612243945,-409.33,0.000253,31]
[338411693,1726612243955,-409.33,0.000253,31]
[338411694,1726612243965,-409.33,0.000253,31]
[338411695,1726612243974,-409.33,0.000253,31]
[338411696,1726612243983,-409.33,0.000253,31]
[338411697,1726612243993,-409.33,0.000253,31]
[338411698,1726612244002,-409.33,0.000253,31]
[338411699,1726612244012,-409.33,0.000253,31]
[338411700,1726612244021,-409.33,0.000253,31]
[338411701,1726612244030,-409.33,0.000253,31]
[338411702,1726612244040,-409.33,0.000253,31]
[338411703,1726612244050,-165.20308892,0.00025315,2]
[338411704,1726612244059,-165.20308891,0.00025315,2]
[338411705,1726612244069,-453.45715737,0.0002544,4]
[338411706,1726612244080,-900.0,0.00025469,3]
[338411707,1726612244091,-12787.74,0.00025479,2]
[338411708,1726612244100,-572.0,0.00025479,2]
[338411709,1726612244110,-153.0,0.00025496,2]
[338411710,1726612244119,-165.20308892,0.00025534,2]
[338411711,1726612244130,-500.0,0.00025643,60]
[338411712,1726612244139,-453.45715737,0.0002568,4]
[338411713,1726612244149,-409.33,0.000257,31]
[338411714,1726612244158,-409.33,0.000257,31]
[338411715,1726612244167,-409.33,0.000257,31]
[338411716,1726612244176,-409.33,0.000257,31]
[338411717,1726612244186,-409.33,0.000257,31]
[338411718,1726612244195,-409.33,0.000257,31]
[338411719,1726612244206,-409.33,0.000257,31]
[338411720,1726612244215,-409.33,0.000257,31]
[338411721,1726612244225,-409.33,0.000257,31]
[338411722,1726612244234,-409.33,0.000257,31]
[338411723,1726612244243,-409.33,0.000257,31]
[338411724,1726612244252,-409.33,0.000257,31]
[338411725,1726612244262,-409.33,0.000257,31]
[338411726,1726612244272,-409.33,0.000257,31]
[338411727,1726612244281,-409.33,0.000257,31]
[338411728,1726612244290,-409.33,0.000257,31]
[338411729,1726612244299,-409.33,0.000257,31]
[338411730,1726612244308,-409.33,0.000257,31]
[338411731,1726612244318,-409.33,0.000257,31]
[338411732,1726612244328,-409.33,0.000257,31]
[338411733,1726612244338,-409.33,0.000257,31]
[338411734,1726612244347,-409.33,0.000257,31]
[338411735,1726612244357,-409.33,0.000257,31]
[338411736,1726612244415,-409.33,0.000257,31]
[338411737,1726612244425,-12787.74,0.00025753,2]
[338411738,1726612244434,-572.0,0.00025753,2]
[338411739,1726612244444,-165.20308892,0.00025753,2]
[338411740,1726612244454,-164.0,0.00025775,2]
[338411741,1726612244463,-572.0,0.0002589,2]
[338411742,1726612244473,-164.0,0.0002589,2]
[338411743,1726612244482,-457.0,0.0002589,2]
[338411744,1726612244492,-453.45715737,0.0002592,4]
[338411745,1726612244502,-2000.0,0.00026,6]
[338411746,1726612244511,-524.70145165,0.00026,2]
[338411747,1726612244521,-200.0,0.00026,120]
[338411748,1726612244530,-1188.84044932,0.00026,2]
[338411749,1726612244539,-1119.7,0.00026,31]
[338411750,1726612244549,-3113.80476025,0.00026,7]
[338411751,1726612244558,-12787.74,0.00026027,2]
[338411752,1726612244567,-572.0,0.00026027,2]
[338411753,1726612244576,-3620.78,0.000261,14]
[338411754,1726612244585,-1507.13,0.000261,7]
[338411755,1726612244595,-200.0,0.00026109,120]
[338411756,1726612244606,-453.45715737,0.0002616,4]
[338411757,1726612244616,-500.0,0.00026191,60]
[338411758,1726612244629,-409.33,0.000262,31]
[338411759,1726612244640,-409.33,0.000262,31]
[338411760,1726612244652,-409.33,0.000262,31]
[338411761,1726612244661,-409.33,0.000262,31]
[338411762,1726612244672,-409.33,0.000262,31]
[338411763,1726612244683,-409.33,0.000262,31]
[338411764,1726612244694,-409.33,0.000262,31]
[338411765,1726612244705,-409.33,0.000262,31]
[338411766,1726612244714,-409.33,0.000262,31]
[338411767,1726612244726,-409.33,0.000262,31]
[338411768,1726612244738,-409.33,0.000262,31]
[338411769,1726612244748,-409.33,0.000262,31]
[338411770,1726612244757,-409.33,0.000262,31]
[338411771,1726612244766,-409.33,0.000262,31]
[338411772,1726612244776,-409.33,0.000262,31]
[338411773,1726612244785,-409.33,0.000262,31]
[338411774,1726612244794,-409.33,0.000262,31]
[338411775,1726612244803,-409.33,0.000262,31]
[338411776,1726612244812,-409.33,0.000262,31]
[338411777,1726612244821,-409.33,0.000262,31]
[338411778,1726612244831,-409.33,0.000262,31]
[338411779,1726612244840,-409.33,0.000262,31]
[338411780,1726612244849,-409.33,0.000262,31]
[338411781,1726612244858,-409.33,0.000262,31]
[338411782,1726612244867,-4795.74,0.00026259,4]
[338411783,1726612244876,-320.0,0.000263,120]
[338411784,1726612244886,-300873.12,0.000263,14]
[338411785,1726612244897,-12787.74,0.00026301,2]
[338411786,1726612244906,-660.0,0.00026301,2]
[338411787,1726612244915,-553.55740258,0.00026342,2]
[338411788,1726612244924,-1000.0,0.00026342,2]
[338411789,1726612244933,-1000.0,0.00026342,2]
[338411790,1726612244943,-574.17010263,0.00026369,2]
[338411791,1726612244952,-2500.0,0.00026384,2]